bitfinex/quotes_ETHUSD_20250214
["timestamp","ask_amount","ask_price","bid_price","bid_amount"]
[1739571160735,0.06926095,2744.0,2743.9,5.165618]
[1739571161077,3.56545,2744.4,2744.3,3.64391]
[1739571161495,3.63484597,2744.4,2744.3,3.64391]
[1739571164108,3.63484597,2744.4,2744.3,4.43621]
[1739571164830,3.63484597,2744.4,2744.2,3.64404]
[1739571165031,4.38754597,2744.4,2743.8,3.64447]
[1739571165237,8.03138597,2744.4,2743.8,3.64447]
[1739571165437,4.38754597,2744.4,2744.0,3.64431]
[1739571165638,8.03137597,2744.4,2743.8,3.64445]
[1739571165834,8.03137597,2744.4,2743.9,3.64441]
[1739571166528,4.38754597,2744.4,2744.0,3.64425]
[1739571166856,4.43309914,2744.4,2744.0,3.64425]
[1739571167643,8.07695914,2744.4,2743.9,3.64432]
[1739571167805,0.55,2744.3,2743.7,5.17318264]
[1739571168009,0.7527,2744.0,2743.6,3.64483]
[1739571168237,0.7527,2744.0,2743.5,0.0968]
[1739571168459,3.63265441,2743.9,2743.5,0.0968]
[1739571168629,3.67821389,2743.9,2743.5,0.0968]
[1739571168811,0.55,2743.7,2743.5,0.0968]
[1739571169145,4.31815,2743.6,2743.5,0.0968]
[1739571169352,4.38529038,2743.6,2743.5,0.0968]
[1739571169751,8.62569411,2743.6,2743.5,0.0968]
[1739571169953,11.99546719,2743.6,2743.5,0.0968]
[1739571175448,14.18346719,2743.6,2743.5,0.0968]
[1739571177301,4.38529038,2743.6,2743.5,0.0968]
[1739571177666,8.03013038,2743.6,2743.5,0.0968]
[1739571177855,11.99546719,2743.6,2743.5,0.0968]
[1739571180461,8.43001719,2743.6,2743.5,0.0968]
[1739571181570,10.61801719,2743.6,2743.5,0.0968]
[1739571181775,8.43001719,2743.6,2743.5,0.0968]
[1739571182760,1.36984038,2743.6,2743.5,0.0968]
[1739571182994,0.81984038,2743.6,2743.5,0.0968]
[1739571183358,1.36984038,2743.6,2743.5,0.0968]
[1739571183758,0.06714038,2743.6,2743.5,0.0968]
[1739571184088,4.43668,2744.0,2743.5,3.74171]
[1739571184271,4.43668,2744.0,2743.5,3.74169]
[1739571184710,0.55,2743.9,2743.5,3.74169]
[1739571185069,0.55,2743.9,2743.6,3.64477]
[1739571185275,0.55,2743.7,2743.6,3.64477]
[1739571185470,0.06077234,2743.8,2743.7,3.64471]
[1739571185675,0.06077234,2743.8,2743.6,3.64483]
[1739571185676,0.7923,2744.0,2743.5,0.0968]
[1739571185983,0.83786085,2744.0,2743.5,0.0968]
[1739571186511,4.48224085,2744.0,2743.5,3.74169]
[1739571186676,0.55,2743.9,2743.5,3.74169]
[1739571187216,0.55,2743.8,2743.5,0.0968]
[1739571189175,1.3499,2743.6,2743.5,0.0968]
[1739571189373,0.55,2743.6,2743.5,0.0968]
[1739571189569,0.55,2743.6,2743.5,3.74177]
[1739571190178,0.275,2744.0,2743.7,3.64464]
[1739571190574,0.275,2744.0,2743.6,3.6448]
[1739571190575,0.55,2743.9,2743.6,3.6448]
[1739571190771,4.19446,2743.9,2743.5,0.0968]
[1739571191472,1.3499,2743.7,2743.5,0.0968]
[1739571191704,4.99461,2743.7,2743.5,0.0968]
[1739571191901,4.19484,2743.6,2743.5,0.0968]
[1739571193978,4.25450933,2743.6,2743.5,0.0968]
[1739571197028,10.7033171,2743.6,2743.5,0.0968]
[1739571197222,10.65774614,2743.6,2743.5,0.0968]
[1739571198532,13.65774614,2743.6,2743.5,0.0968]
[1739571198696,17.07308295,2743.6,2743.5,1e-05]
[1739571199028,13.65774614,2743.6,2743.5,1e-05]
[1739571199232,17.07308295,2743.6,2743.5,1e-05]
[1739571199451,3.64641,2742.5,2742.0,0.8331]
[1739571199601,4.19648,2742.4,2742.0,0.8331]
[1739571199914,0.55,2742.2,2742.0,0.8331]
[1739571200429,0.60867257,2742.1,2742.0,0.8331]
[1739571200835,0.55,2742.0,2741.3,3.6479]
[1739571201026,0.55,2741.8,2741.5,3.64763]
[1739571201215,0.05830062,2741.7,2741.5,3.64763]
[1739571201421,0.55,2741.9,2741.5,3.64763]
[1739571201617,0.05797734,2741.8,2741.5,3.64763]
[1739571202147,0.05797734,2741.8,2741.5,3.64755]
[1739571202344,0.05797734,2741.8,2741.7,4.48047]
[1739571202644,0.55,2742.4,2741.8,3.64715]
[1739571202802,4.19646,2742.4,2741.8,3.64715]
[1739571203181,4.19642,2742.5,2741.9,3.64707]
[1739571203347,4.19632,2742.5,2741.9,3.64707]
[1739571204246,0.55,2742.5,2741.9,3.64702]
[1739571204441,0.55,2742.5,2741.7,4.48038]
[1739571204656,0.55,2742.3,2741.8,3.64719]
[1739571204808,0.0455887,2742.2,2741.8,3.64719]
[1739571205209,0.55,2742.3,2741.8,3.64715]
[1739571205522,0.55,2742.3,2741.8,7.2943]
[1739571205840,0.04558872,2742.2,2741.8,3.64715]
[1739571206045,0.05814112,2742.1,2741.8,3.64715]
[1739571206249,0.05814112,2742.1,2741.8,7.2943]
[1739571206457,0.05814112,2742.1,2741.7,0.8331]
[1739571206603,0.55,2742.0,2741.5,3.64759]
[1739571206805,0.05809839,2741.9,2741.5,4.44023]
[1739571207220,0.05809839,2741.9,2741.5,0.7926]
[1739571207414,0.789,2742.4,2741.8,3.64723]
[1739571207646,0.55,2742.2,2741.8,3.64723]
[1739571207847,0.10373032,2742.1,2741.8,3.6472]
[1739571208357,0.05814112,2742.1,2741.8,3.6472]
[1739571208555,0.05814112,2742.1,2741.7,3.64729]
[1739571208741,0.05814112,2742.1,2741.5,0.7926]
[1739571208941,0.55,2742.0,2741.5,4.44017]
[1739571209145,4.19697,2742.0,2741.5,4.44017]
[1739571209350,0.55,2741.8,2741.4,3.64776]
[1739571209732,0.05798918,2741.7,2741.4,3.64776]
[1739571209918,3.70536918,2741.7,2741.3,0.7926]
[1739571210122,0.04559603,2741.6,2741.3,0.7926]
[1739571210354,0.05796781,2741.6,2741.3,0.7926]
[1739571210560,4.19766,2741.5,2741.3,0.7926]
[1739571210862,4.19766,2741.5,2741.1,3.6481]
[1739571210863,0.05784259,2741.5,2741.1,3.6481]
[1739571211355,4.43619,2741.9,2741.0,0.7926]
[1739571211558,0.789,2741.9,2741.1,3.64811]
[1739571211757,3.64744,2741.7,2741.1,3.64811]
[1739571211971,0.55,2741.6,2741.1,3.64811]
[1739571212627,0.55,2741.8,2741.1,3.64811]
[1739571212827,0.55,2741.6,2741.1,3.64811]
[1739571213027,4.19753,2741.6,2741.1,3.64811]
[1739571213360,0.05769722,2741.5,2741.1,3.64811]
[1739571213560,0.05769722,2741.5,2741.3,3.6479]
[1739571213865,0.05769722,2741.5,2741.4,3.64777]
[1739571214239,4.43617,2741.9,2741.4,3.64777]
[1739571214240,0.55,2741.8,2741.4,3.64777]
[1739571214451,0.0576735,2741.7,2741.4,3.64777]
[1739571214655,0.55,2741.8,2741.4,3.64776]
[1739571214867,0.0576735,2741.7,2741.2,3.64801]
[1739571215179,0.0576735,2741.7,2741.3,3.64789]
[1739571215674,0.05765213,2741.6,2741.3,3.64789]
[1739571215880,0.05765213,2741.6,2741.3,3.6479]
[1739571216176,0.55,2741.8,2741.3,3.6479]
[1739571216339,0.05763076,2741.5,2741.3,3.6479]
[1739571216545,4.19726,2741.8,2741.3,3.6479]
[1739571216759,0.05760938,2741.4,2741.0,4.4408]
[1739571216950,3.64744,2741.7,2741.2,3.64796]
[1739571217150,0.057588,2741.3,2741.2,3.6479]
[1739571217354,4.19725,2741.8,2741.2,3.6479]
[1739571217355,4.19725,2741.8,2741.3,3.64786]
[1739571218883,4.19725,2741.8,2741.2,7.29585]
[1739571219446,3.64745,2741.7,2741.2,3.6479]
[1739571219745,1.3492,2741.5,2741.0,4.44087]
[1739571219986,1.3492,2741.5,2741.1,3.64804]
[1739571220144,1.3492,2741.5,2741.1,3.64817]
[1739571220559,0.05760938,2741.4,2741.1,3.64817]
[1739571221791,0.05760938,2741.4,2741.1,3.64808]
[1739571222009,0.05760938,2741.4,2741.0,4.44087]
[1739571222162,0.05760938,2741.4,2741.1,3.64817]
[1739571222358,0.05760938,2741.4,2741.2,3.64803]
[1739571224676,0.05760938,2741.4,2741.1,3.64817]
[1739571224879,0.05760938,2741.4,2741.2,3.64799]
[1739571225200,0.05760938,2741.4,2741.3,3.6479]
[1739571225727,0.05545157,2741.4,2741.1,3.64807]
[1739571225901,4.1973,2741.8,2741.3,3.64789]
[1739571226059,3.6473,2741.8,2741.3,3.64789]
[1739571226268,3.6473,2741.8,2741.1,3.64807]
[1739571226269,4.19763,2741.6,2741.1,3.64803]
[1739571226487,0.84480065,2741.5,2741.1,3.64803]
[1739571226697,0.84480065,2741.5,2741.1,7.29613]
[1739571227316,0.84480065,2741.5,2741.1,7.29611]
[1739571227539,0.84480065,2741.5,2741.1,7.29614]
[1739571228019,0.7992,2741.5,2741.2,3.64803]
[1739571228599,0.55,2741.5,2741.4,3.64777]
[1739571228805,0.55,2741.5,2741.3,7.29566]
[1739571229081,0.55,2741.5,2741.3,3.64782]
[1739571229582,0.7992,2741.7,2741.4,3.64777]
[1739571229781,0.7992,2742.1,2741.6,3.6475]
[1739571230019,0.7992,2742.1,2741.5,0.7774]
[1739571230218,0.7992,2742.1,2741.6,3.6475]
[1739571230394,0.7992,2742.1,2741.7,3.6473]
[1739571230591,0.7992,2742.3,2741.9,3.64704]
[1739571230795,0.7992,2742.3,2742.0,3.64695]
[1739571231318,0.55,2742.2,2741.9,3.64709]
[1739571232617,0.55,2742.2,2741.8,7.29433]
[1739571233519,4.19675,2742.2,2741.7,3.64729]
[1739571233682,0.55,2742.2,2741.7,3.64737]
[1739571233882,0.55,2742.2,2741.8,3.64721]
[1739571234505,0.55,2742.2,2741.8,3.54801]
[1739571236507,0.55,2742.2,2741.9,3.64704]
[1739571237025,0.55,2742.2,2741.8,7.19517]
[1739571237226,0.55,2742.2,2741.8,3.54801]
[1739571237524,0.55,2742.2,2741.9,3.64702]
[1739571239030,0.55,2742.2,2741.9,7.29405]
[1739571239894,0.55,2742.2,2741.9,3.64702]
[1739571240094,0.55,2742.2,2742.0,3.64695]
[1739571240345,0.7673,2742.6,2742.3,3.64647]
[1739571240549,0.7673,2742.6,2742.0,3.64688]
[1739571240709,0.55,2742.5,2742.1,3.6467]
[1739571241226,0.55,2742.5,2742.3,3.6465]
[1739571241430,5.777,2742.7,2742.4,3.64633]
[1739571241587,0.55,2742.6,2742.4,3.64633]
[1739571242226,0.55,2742.6,2741.9,0.7906]
[1739571242406,0.55,2742.6,2742.3,3.64644]
[1739571243044,0.55,2742.6,2742.4,3.64642]
[1739571243408,5.777,2742.7,2742.4,3.64642]
[1739571243593,5.777,2742.7,2742.6,3.64617]
[1739571244928,5.39,2743.0,2742.5,4.43689]
[1739571245132,0.7673,2743.4,2743.1,3.64541]
[1739571245329,0.7673,2743.4,2743.2,3.64534]
[1739571245533,0.7673,2743.6,2743.2,3.64534]
[1739571245938,4.41216,2743.6,2743.1,3.64541]
[1739571246256,0.7673,2743.6,2743.1,3.64541]
[1739571246565,0.7673,2743.6,2743.1,7.29085]
[1739571246725,0.7673,2743.6,2742.7,4.43661]
[1739571247052,4.41215,2743.6,2743.1,3.64539]
[1739571247219,4.41215,2743.6,2743.1,3.64549]
[1739571247962,0.7673,2743.6,2743.2,3.64536]
[1739571248124,0.18675662,2743.9,2743.4,3.64502]
[1739571248455,0.7569,2743.9,2743.5,3.64488]
[1739571248822,0.05275177,2743.8,2743.5,3.64488]
[1739571249449,0.05275177,2743.8,2743.4,3.6451]
[1739571249807,0.05275177,2743.8,2743.4,3.64511]
[1739571250002,0.05275177,2743.8,2743.5,3.64489]
[1739571250250,0.05275177,2743.8,2743.4,7.29012]
[1739571250457,0.05275177,2743.8,2743.5,3.6449]
[1739571255354,0.05275177,2743.8,2743.6,3.64477]
[1739571255547,0.05275177,2743.8,2743.5,3.6449]
[1739571256143,0.05275177,2743.8,2743.6,3.64483]
[1739571256477,0.05275177,2743.8,2743.5,3.6449]
[1739571257231,0.05275177,2743.8,2743.6,3.64483]
[1739571257557,0.05275177,2743.8,2743.6,3.64475]
[1739571258266,0.05275177,2743.8,2743.7,3.64471]
[1739571259583,0.05275177,2743.8,2743.7,4.44581]
[1739571259866,0.7569,2744.3,2744.1,3.64411]
[1739571261561,0.04811621,2744.2,2744.1,3.64408]
[1739571261769,0.7569,2744.6,2744.1,0.8011]
[1739571261968,0.7569,2744.9,2744.6,3.64345]
[1739571262845,0.7569,2744.9,2744.5,3.64362]
[1739571263039,4.40004,2744.9,2744.4,3.64377]
[1739571263366,0.7569,2744.9,2744.5,3.64355]
[1739571263767,0.7569,2744.9,2744.6,3.64351]
[1739571264340,0.7569,2744.9,2744.5,3.64362]
[1739571265237,0.04774206,2744.8,2744.6,3.64351]
[1739571265786,0.04774206,2744.8,2744.7,3.64338]
[1739571266468,0.04774206,2744.8,2744.6,3.64351]
[1739571266674,0.04774206,2744.8,2744.5,3.64361]
[1739571267775,0.04774206,2744.8,2744.6,3.6435]
[1739571268077,0.04774206,2744.8,2744.5,3.64361]
[1739571270473,0.04774206,2744.8,2744.4,3.64376]
[1739571270835,0.04774206,2744.8,2743.9,0.7712]
[1739571270836,3.64356,2744.6,2743.9,0.7712]
[1739571271070,0.8275,2744.6,2744.2,3.64397]
[1739571271368,0.04736222,2744.5,2744.2,3.64397]
[1739571271588,0.04736222,2744.5,2744.2,3.64394]
[1739571272600,0.04736222,2744.5,2744.0,4.41542]
[1739571272770,3.69101222,2744.5,2744.0,3.64422]
[1739571273195,0.04736222,2744.5,2744.2,3.64398]
[1739571273497,3.69103222,2744.5,2744.1,3.64417]
[1739571273870,0.87486222,2744.5,2744.1,3.64415]
[1739571274069,0.87486222,2744.5,2743.9,3.64434]
[1739571274273,4.51851222,2744.5,2744.0,3.6443]
[1739571274468,0.87486222,2744.5,2744.0,3.6443]
[1739571274675,0.87486222,2744.5,2744.1,3.64412]
[1739571275203,0.87486222,2744.5,2744.0,3.6443]
[1739571275370,0.87486222,2744.5,2744.1,3.64408]
[1739571277504,0.87486222,2744.5,2743.8,0.7712]
[1739571277709,0.87486222,2744.5,2743.7,3.6447]
[1739571277710,0.7718,2744.1,2743.7,3.6447]
[1739571278107,0.04741954,2744.0,2743.7,3.6447]
[1739571278405,0.04741954,2744.0,2743.6,3.64484]
[1739571279330,0.04741954,2744.0,2743.5,3.64496]
[1739571279702,3.69173954,2744.0,2743.6,3.64482]
[1739571280208,7.33615954,2744.0,2743.4,3.645]
[1739571280410,0.7718,2743.8,2743.3,3.64514]
[1739571280652,0.7718,2743.8,2743.5,3.64495]
[1739571280816,0.04721794,2743.7,2743.5,3.64495]
[1739571281020,0.7718,2743.8,2743.3,3.64514]
[1739571281329,0.04721794,2743.7,2743.3,3.64514]
[1739571281547,4.41639,2743.8,2743.4,3.64509]
[1739571281846,0.0471966,2743.6,2743.4,3.6451]
[1739571282013,0.7718,2743.8,2743.5,3.64491]
[1739571284934,0.04721794,2743.7,2743.3,3.64515]
[1739571285101,4.41639,2743.8,2743.3,7.29031]
[1739571285304,0.04721794,2743.7,2743.3,7.29031]
[1739571285611,4.41639,2743.8,2743.3,3.64515]
[1739571285807,0.0471966,2743.6,2743.3,3.64515]
[1739571286027,4.41639,2743.8,2743.3,3.64515]
[1739571286226,0.04717525,2743.5,2743.3,7.29033]
[1739571286529,0.04715391,2743.4,2743.3,3.64515]
[1739571286731,4.41639,2743.8,2743.3,3.64515]
[1739571286932,0.04685369,2743.4,2743.3,3.64515]
[1739571287137,4.41639,2743.8,2743.3,3.64515]
[1739571287298,0.04685369,2743.4,2743.3,3.64515]
[1739571287501,4.41639,2743.8,2743.3,3.64515]
[1739571287728,0.04691772,2743.7,2743.3,3.64515]
[1739571288004,4.41639,2743.8,2743.3,3.64515]
[1739571288198,0.04689638,2743.6,2743.3,3.64515]
[1739571288432,0.04556262,2743.7,2743.3,3.64515]
[1739571288935,3.69177638,2743.6,2743.2,0.7643]
[1739571289236,0.04689638,2743.6,2743.2,3.64534]
[1739571289423,3.69173638,2743.6,2743.0,8.05547]
[1739571289598,3.69173638,2743.6,2743.0,4.40985]
[1739571289805,3.69173638,2743.6,2743.1,3.64551]
[1739571291443,0.04689638,2743.6,2743.2,3.64533]
[1739571293155,3.64485,2743.6,2743.2,3.64533]
[1739571293457,0.04687504,2743.5,2743.1,3.64551]
[1739571293999,0.04687504,2743.5,2743.1,7.29094]
[1739571294175,0.04687504,2743.5,2743.1,3.64543]
[1739571294350,4.46547,2743.4,2742.9,3.6457]
[1739571294554,0.8203,2743.4,2743.0,3.64557]
[1739571294780,0.04683234,2743.3,2743.0,3.64557]
[1739571295188,0.04683234,2743.3,2743.1,0.8121]
[1739571295358,3.64495,2743.6,2743.2,3.64537]
[1739571296667,0.04659144,2743.5,2743.2,3.64537]
[1739571296984,0.04659144,2743.5,2742.6,3.41533681]
[1739571296985,4.46607,2742.9,2742.5,4.4583]
[1739571297187,4.46607,2742.9,2742.5,0.8121]
[1739571297405,3.64592,2742.8,2742.4,3.64643]
[1739571297588,3.692095,2742.8,2742.4,3.64643]
[1739571297912,3.64613,2742.7,2742.2,3.6466]
[1739571298079,3.692085,2742.8,2742.2,3.64659]
[1739571298282,0.04613229,2742.6,2742.2,3.64659]
[1739571298462,3.69219365,2742.7,2742.2,3.64659]
[1739571298670,0.04611093,2742.5,2742.1,3.64674]
[1739571299003,0.8203,2742.9,2742.4,3.64643]
[1739571299166,4.46616,2742.9,2742.1,4.51004309]
[1739571299371,3.64592,2742.8,2742.3,3.64657]
[1739571299881,3.64592,2742.8,2742.3,3.64649]
[1739571300404,0.04615365,2742.7,2742.3,3.64649]
[1739571300600,4.46616,2742.9,2742.4,3.64642]
[1739571300802,0.04613229,2742.6,2742.4,3.64636]
[1739571300981,3.64592,2742.8,2742.3,3.64657]
[1739571301310,0.04611093,2742.5,2742.3,3.64657]
[1739571301465,3.64592,2742.8,2742.3,3.64657]
[1739571301801,0.04450426,2742.7,2742.4,3.64636]
[1739571302006,0.8203,2742.9,2742.4,4.45846]
[1739571302202,0.0444829,2742.6,2742.4,4.45846]
[1739571302509,3.64592,2742.8,2742.4,4.45846]
[1739571302710,0.04446154,2742.5,2742.2,4.4587]
[1739571302908,3.64637,2742.5,2742.0,4.45899]
[1739571303213,3.64664,2742.3,2741.8,4.45926]
[1739571303402,0.86474018,2742.4,2741.9,3.64699]
[1739571303403,0.04444018,2742.4,2741.9,3.64699]
[1739571303595,0.8203,2742.4,2741.9,3.6471]
[1739571303799,0.04424357,2742.3,2741.9,3.6471]
[1739571304392,0.04424357,2742.3,2742.0,3.64691]
[1739571305882,0.04424357,2742.3,2741.9,3.6471]
[1739571306076,0.8203,2742.2,2741.8,3.64713]
[1739571306312,0.8203,2742.2,2741.9,3.64701]
[1739571306533,0.04420083,2742.1,2741.9,3.64701]
[1739571308132,0.04420083,2742.1,2741.7,3.64733]
[1739571308337,0.08978991,2742.1,2741.7,3.64733]
[1739571308610,0.04420083,2742.1,2741.7,3.64736]
[1739571310268,3.69104083,2742.1,2741.7,3.64736]
[1739571310569,0.04420083,2742.1,2741.7,7.29467]
[1739571310753,0.04420083,2742.1,2741.7,3.64731]
[1739571311068,3.69106083,2742.1,2741.7,3.64731]
[1739571311721,0.04420083,2742.1,2741.7,3.64731]
[1739571311960,0.04420083,2742.1,2741.8,3.64723]
[1739571312136,0.04420083,2742.1,2741.8,4.42947]
[1739571312472,4.39799,2742.4,2741.9,3.64703]
[1739571312671,0.04377547,2742.0,2741.9,3.64703]
[1739571312875,4.39799,2742.4,2741.9,3.64703]
[1739571313368,3.69047796,2742.3,2741.9,3.64703]
[1739571314334,3.69047796,2742.3,2741.8,3.64717]
[1739571315691,3.69047796,2742.3,2741.9,3.64708]
[1739571316991,0.04386796,2742.3,2741.7,3.64736]
[1739571317119,0.04386796,2742.3,2741.5,3.64754]
[1739571317120,3.64702,2742.0,2741.5,3.64754]
[1739571317481,4.48138392,2741.9,2741.4,3.64775]
[1739571317771,3.6473,2741.8,2741.3,4.4455]
[1739571317943,3.69106112,2741.8,2741.4,3.64775]
[1739571318139,3.69106112,2741.8,2740.6,0.7977]
[1739571318140,0.7904,2741.3,2740.6,0.7977]
[1739571318361,0.55,2740.7,2739.8,4.5963268]
[1739571318600,0.7904,2740.3,2739.8,3.7986268]
[1739571318879,3.41533681,2740.1,2739.8,0.1488268]
[1739571319040,3.69534569,2740.0,2739.8,0.1488268]
[1739571319380,0.7904,2740.3,2739.8,0.1488268]
[1739571319546,3.41533681,2740.1,2739.8,0.1488268]
[1739571319729,4.44016,2739.9,2739.8,0.1488268]
[1739571319949,4.99016,2739.9,2739.8,0.1488268]
[1739571320199,7.17816,2739.9,2739.8,0.1488268]
[1739571321195,4.71416,2739.9,2739.8,0.1488268]
[1739571321577,5.26416,2739.9,2739.8,0.1488268]
[1739571321784,5.30505014,2739.9,2739.8,0.1488268]
[1739571322470,1.10529014,2739.9,2739.8,0.1488268]
[1739571323300,4.75505014,2739.9,2739.8,0.1488268]
[1739571324007,5.30505014,2739.9,2739.8,0.1488268]
[1739571324201,3.65036,2739.5,2738.9,3.65104]
[1739571324507,0.04563848,2739.4,2738.9,3.65104]
[1739571324659,0.08606183,2739.4,2738.9,3.65104]
[1739571325605,3.69086335,2739.4,2738.8,3.65113]
[1739571325759,0.04042335,2739.4,2738.9,3.65101]
[1739571325959,7.06558681,2739.6,2738.9,3.65101]
[1739571326190,0.04049324,2739.3,2738.9,7.30203]
[1739571326407,7.06558681,2739.6,2738.9,7.30203]
[1739571326553,0.04047183,2739.2,2738.9,3.65101]
[1739571326761,0.55,2739.6,2738.9,3.65101]
[1739571326993,3.69083606,2739.5,2739.0,3.6509]
[1739571327310,0.04053606,2739.5,2739.3,3.65048]
[1739571327518,0.04053606,2739.5,2739.4,3.65043]
[1739571327732,1.0644,2739.9,2739.4,3.65043]
[1739571328114,1.0644,2739.9,2739.5,3.65026]
[1739571328638,5.39,2740.1,2739.5,3.65022]
[1739571328921,5.39,2740.1,2739.3,3.65049]
[1739571328922,0.8226,2739.8,2739.3,3.65049]
[1739571329078,4.5181622,2739.8,2739.3,3.65049]
[1739571329281,0.04056213,2739.7,2739.3,3.65049]
[1739571329591,4.5181622,2739.8,2739.2,3.65068]
[1739571329896,0.04054072,2739.6,2739.1,3.65081]
[1739571330095,0.04054072,2739.6,2739.2,3.65069]
[1739571330397,3.6501,2739.7,2739.2,3.65069]
[1739571330705,3.65017,2739.6,2739.0,3.6509]
[1739571331029,3.65006,2739.7,2739.1,3.65075]
[1739571331433,3.69588507,2739.6,2739.0,3.6509]
[1739571331634,4.20016,2739.6,2739.1,3.65082]
[1739571333034,0.04053607,2739.5,2739.1,3.65082]
[1739571333334,0.04053607,2739.5,2739.0,3.6509]
[1739571333533,0.04053607,2739.5,2739.1,3.6508]
[1739571334724,0.04053607,2739.5,2739.0,3.6509]
[1739571334725,0.04053607,2739.5,2739.2,3.65064]
[1739571334887,3.69091607,2739.5,2738.9,4.47468]
[1739571335241,3.65051,2739.4,2738.9,4.47463]
[1739571335587,3.65078,2739.2,2738.7,3.65128]
[1739571335823,4.46528,2739.2,2738.7,3.65128]
[1739571336133,4.51091744,2739.2,2738.6,4.4767]
[1739571336337,4.51091744,2739.2,2738.0,3.0]
[1739571336338,3.65336,2737.2,2737.0,0.38052253]
[1739571336487,4.20336,2737.2,2736.2,3.65468]
[1739571336692,0.0399406,2737.2,2736.7,0.8253]
[1739571336943,0.0399406,2737.2,2737.1,1.92966215]
[1739571337120,0.8145,2737.7,2737.1,5.58311215]
[1739571337327,0.8145,2738.1,2737.6,3.65278]
[1739571337503,3.65176,2738.4,2737.7,5.80933868]
[1739571337709,0.28,2738.5,2737.5,3.44191755]
[1739571337950,10.24861,2738.9,2738.1,3.6521]
[1739571338084,9.43411,2738.9,2738.3,3.6518]
[1739571338287,5.783,2738.9,2738.3,3.65188]
[1739571338542,5.783,2738.9,2738.3,3.67845997]
[1739571338755,5.783,2738.9,2738.5,3.65152]
[1739571339457,5.783,2738.9,2738.2,0.8253]
[1739571339674,3.65174,2738.5,2737.8,0.8176]
[1739571339807,3.65174,2738.5,2737.5,4.47056]
[1739571339808,3.6522,2738.1,2737.5,4.47056]
[1739571340030,0.04565811,2738.0,2737.5,0.8176]
[1739571340267,0.03760823,2738.0,2737.5,0.8176]
[1739571340592,0.03760823,2738.0,2737.6,3.65282]
[1739571340745,4.44227,2738.5,2737.7,3.65257]
[1739571341074,0.03765179,2738.4,2737.9,3.65241]
[1739571342046,3.68945179,2738.4,2737.7,3.65266]
[1739571342361,3.6524,2738.0,2737.5,0.8176]
[1739571342769,3.6524,2738.0,2737.4,3.6531]
[1739571342970,3.41533681,2737.6,2737.1,3.8073268]
[1739571343266,3.41533681,2737.6,2737.2,3.65336]
[1739571343471,3.41533681,2737.6,2737.1,3.8072368]
[1739571343763,0.03749516,2737.5,2737.2,3.65328]
[1739571344156,0.03749516,2737.5,2737.3,3.65323]
[1739571344357,0.03749516,2737.5,2737.4,3.6531]
[1739571344558,4.20593681,2737.9,2737.4,3.6531]
[1739571345073,3.6527,2737.7,2737.2,0.02659311]
[1739571345272,7.1139344,2737.6,2737.1,0.1538268]
[1739571345656,4.30639976,2737.5,2737.1,0.1538268]
[1739571346241,8.74967976,2737.8,2737.2,3.65334]
[1739571346380,5.09699976,2737.8,2737.3,3.65315]
[1739571347097,5.09699976,2738.1,2737.5,3.65292]
[1739571347403,3.65244,2737.9,2737.3,7.30632]
[1739571347550,0.55,2738.0,2737.3,3.65314]
[1739571347751,3.65253,2737.9,2737.4,3.65307]
[1739571347953,3.65253,2737.9,2737.1,0.1538268]
[1739571348252,5.09699976,2738.1,2737.3,3.65313]
[1739571348253,3.65261,2737.8,2737.3,3.65313]
[1739571348470,4.2024,2738.0,2737.3,3.65313]
[1739571348750,4.30639976,2737.8,2737.4,3.65307]
[1739571348974,4.44378,2737.4,2737.1,0.1538268]
[1739571349372,7.95975976,2737.2,2737.1,0.1538268]
[1739571349576,8.50975976,2737.2,2737.1,0.1538268]
[1739571349788,1.0736,2737.4,2737.1,0.1538268]
[1739571349789,4.72674,2737.4,2737.1,0.1538268]
[1739571350000,9.30035976,2737.2,2737.1,0.1538268]
[1739571350201,14.48835976,2737.2,2737.1,0.1538268]
[1739571350401,12.30035976,2737.2,2737.1,0.1538268]
[1739571350786,12.3376017,2737.2,2737.1,0.1538268]
[1739571351286,9.0736017,2737.2,2737.1,0.1538268]
[1739571351664,0.82784194,2737.2,2737.1,0.1538268]
[1739571352081,0.03724194,2737.2,2737.1,0.1538268]
[1739571352472,0.7906,2737.5,2737.1,3.8073268]
[1739571352683,4.30639976,2737.8,2737.1,3.8073268]
[1739571352684,0.7906,2738.0,2737.3,3.65314]
[1739571352896,0.7906,2738.0,2737.1,0.1538268]
[1739571352897,0.7906,2738.0,2737.5,3.65296]
[1739571353218,5.09699976,2738.4,2737.9,3.65243]
[1739571353366,0.7906,2738.4,2738.1,3.65215]
[1739571353571,0.7906,2738.4,2738.2,3.65202]
[1739571353766,4.30639976,2739.0,2738.3,3.6519]
[1739571353962,4.30639976,2739.0,2738.6,3.65148]
[1739571354397,0.7906,2739.2,2738.6,3.65148]
[1739571354619,0.55,2739.1,2738.6,3.65148]
[1739571354778,0.55,2739.1,2738.7,3.65132]
[1739571355395,4.30639976,2739.0,2737.7,0.7979]
[1739571355598,4.30639976,2738.4,2737.7,3.65259]
[1739571355801,7.95826976,2738.4,2737.7,3.65259]
[1739571355973,1.3095,2738.3,2737.7,3.65259]
[1739571356162,0.04565919,2738.2,2737.5,3.65291]
[1739571356368,0.7595,2738.3,2737.8,3.65243]
[1739571356568,0.7595,2738.3,2738.0,3.65229]
[1739571356867,0.7595,2738.3,2737.8,3.65243]
[1739571358085,0.55,2738.2,2737.1,0.1538268]
[1739571358298,3.65241,2738.0,2737.3,3.65312]
[1739571358471,0.55,2737.9,2737.3,3.65312]
[1739571358815,0.55,2737.9,2737.1,0.1538268]
[1739571358816,3.65266,2737.8,2737.2,3.65328]
[1739571359280,3.65266,2737.8,2737.2,3.65336]
[1739571359626,7.30534,2737.8,2737.1,3.8072768]
[1739571359923,0.55,2737.9,2737.3,3.65321]
[1739571360119,0.55,2737.9,2737.1,7.4606168]